Cogmind - Beta 14 @@@ ROGUE MODE // 2024.09.08 @ 16:12:59 Player: Dull Result: Destroyed by H-55 Commando with Gauss Rifle Performance ------------- Evolutions (1) 500 Regions Visited (5) 1000 Robots Destroyed (97) 485 Value Destroyed (2702) 2702 Prototype IDs (26) 520 Alien Tech Used (0) 0 Bonus (481) 481 TOTAL SCORE: 5688 Bonus ------- High Alert Combat Kills 181 Aligned with FarCom 300 Cogmind --------- Core Integrity 0/400 Matter 73/300 Energy 265/265 System Corruption 6% Temperature Cool (0) Movement Walking (120) Location -9/Exiles Parts ------- > --- POWER (1) -------- Reinforced Ion Engine > --- PROPULSION (4) --- Aluminum Leg Aluminum Leg Improved Aluminum Leg > --- UTILITY (2) ------ Improved Heat Sink Medium Storage Unit > --- WEAPON (2) ------- Rocket Launcher Mini Grenade Launcher > --- INVENTORY (10) --- Ion Engine Aluminum Leg Field Recycling Unit (0) Guided Plasma Cannon XL Autogun Array Katana Peak State ------------ > --- POWER ------------ Reinforced Ion Engine > --- PROPULSION ------- Aluminum Leg Aluminum Leg Aluminum Leg Improved Aluminum Leg > --- UTILITY ---------- Medium Storage Unit Propulsion Shielding > --- WEAPON ----------- Guided Plasma Cannon Katana > --- INVENTORY -------- Ion Engine Aluminum Leg Improved Heat Sink Field Recycling Unit XL Autogun Array Rocket Launcher Mini Grenade Launcher [Rating: 24] Favorites ----------- Power Light Ion Engine Engine Light Ion Engine Power Core Light Nuclear Core Propulsion Aluminum Leg Treads Light Treads Leg Aluminum Leg Utility Huge Storage Unit Device Experimental Sensor Array Storage Huge Storage Unit Processor Transport Network Coupler Protection Medium Armor Plating Weapon Light Cannon Energy Gun Improved Medium Laser Energy Cannon Beam Cannon Ballistic Gun High-powered Shotgun Ballistic Cannon Light Cannon Launcher Rocket Launcher Impact Weapon Hammer Slashing Weapon Mining Claw Build | -11 -10 -10 -9 -9 -9 ------- Run | Yrd Mat Min Mat Min Exi Slots Evolved 2 | . . . 2 . . Power . | . . . . . . Propulsion 2 | . . . 2 . . Utility . | . . . . . . Weapon . | . . . . . . Parts Attached 93 | 7 25 6 43 6 6 Power 14 | 1 4 2 4 3 . Engine 12 | 1 4 2 2 3 . Core 2 | . . . 2 . . Reactor . | . . . . . . Propulsion 39 | 3 10 2 21 2 1 Treads 2 | 2 . . . . . Leg 37 | 1 10 2 21 2 1 Wheel . | . . . . . . Hover . | . . . . . . Flight . | . . . . . . Utility 15 | 1 2 1 9 1 1 Device 2 | . . 1 . . 1 Storage 4 | 1 1 . 2 . . Processor 1 | . 1 . . . . Hackware . | . . . . . . Protection 8 | . . . 7 1 . Artifact . | . . . . . . Weapon 25 | 2 9 1 9 . 4 Energy Gun 3 | . 2 . 1 . . Energy Cannon 2 | . 1 . . . 1 Ballistic Gun 10 | 2 . 1 7 . . Ballistic Cannon 3 | . 3 . . . . Launcher 2 | . . . . . 2 Special Weapon . | . . . . . . Impact Weapon 1 | . 1 . . . . Slashing Weapon 4 | . 2 . 1 . 1 Piercing Weapon . | . . . . . . Special Melee Weapon . | . . . . . . Unidentified Prototypes 4 | . . 1 2 . 1 Parts Lost 14 | . 3 4 4 1 2 Power 4 | . 2 1 1 . . Propulsion 3 | . . 2 . . 1 Utility 5 | . . . 3 1 1 Weapon 2 | . 1 1 . . . Highest Loss Streak 4 | . 1 4 1 1 2 To Critical Strikes . | . . . . . . Average Slot Usage (%) 97 | . 95 96 99 99 92 Engine 10 | . 11 12 6 11 11 Core 1 | . . . 3 . . Treads 1 | . 4 . . . . Leg 34 | . 22 26 43 44 44 Device 1 | . . 5 1 . . Storage 12 | . 14 14 11 11 11 Processor 5 | . 13 8 . . . Protection 5 | . . . 9 10 10 Energy Cannon 1 | . 4 . . . 5 Ballistic Gun 8 | . 2 1 14 22 3 Ballistic Cannon 5 | . 11 12 . . . Impact Weapon 4 | . 2 14 5 . . Slashing Weapon 1 | . 4 . . . 5 Peak Build Rating 24 | 6 10 19 21 17 24 Average Rating 13 | 4 8 12 16 15 18 On Entrance 11 | . 6 9 19 15 17 Naked Turns . | . . . . . . Heaviest Build 97 | 13 91 90 97 27 33 Greatest Support 43 | 40 40 20 43 43 43 Greatest Overweight (x) 28 | . 28 28 2 . . Average Overweight (x) 1 | . 2 4 . . . Largest Inventory Capacity 25 | 8 25 25 25 10 10 Average Capacity 18 | 7 21 25 16 10 10 Most Carried 25 | 8 25 25 25 10 10 Average Carried 17 | 4 18 24 15 9 9 Final Capacity 25 | 8 25 25 10 10 10 Final Carried 25 | 4 25 25 10 10 9 Class Distribution -------------------- 56% | Scavenger-Mutant 43% | Mutant Dominant Class ---------------- Mutant | -10/Materials Mutant | -10/Mines Scavenger-Mutant | -9/Materials Scavenger-Mutant | -9/Mines Scavenger-Mutant | -9/Exiles Resources | -11 -10 -10 -9 -9 -9 ----------- Run | Yrd Mat Min Mat Min Exi Matter Collected 2233 | 231 607 156 1039 200 . Remotely . | . . . . . . Salvage Created 3328 | . 807 186 1852 197 286 Parts 190 | . 34 5 117 20 14 Haulers Intercepted 4 | . 2 . 2 . . Recyclers Shooed 3 | . 1 . . 2 . Parts Field Recycled . | . . . . . . Retrieved Matter . | . . . . . . Parts Self-Destructed . | . . . . . . Prevented . | . . . . . . Kills | -11 -10 -10 -9 -9 -9 ------- Run | Yrd Mat Min Mat Min Exi Combat Hostiles Destroyed 76 | . 15 2 37 8 14 Guns 51 | . 4 2 37 8 . Cannons 10 | . 10 . . . . AOE 14 | . . . . . 14 Classes Destroyed 15 | . 6 1 6 . 2 Worker 4 | . . 1 1 2 . Builder 1 | . . . 1 . . Tunneler 1 | . . . 1 . . Hauler 4 | . 2 . 2 . . Recycler 6 | . 3 . 2 1 . Mechanic 2 | . 1 . 1 . . Operator 1 | . 1 . . . . Watcher 2 | . . . 2 . . Swarmer 16 | . 3 . 7 6 . Grunt 39 | . 12 2 15 2 8 Brawler 3 | . . . 3 . . Duelist 3 | . . . 2 . 1 Sentry 10 | . . . 10 . . Hunter 3 | . . . . . 3 Programmer 2 | . . . . . 2 Best Kill Streak 14 | . 4 2 8 3 14 Combat Bots Only 14 | . 3 2 6 3 14 Max Kills in Single Turn 5 | . 1 1 2 2 5 Gunslinging 1 | . . . 1 1 . Exploded 5 | . . . . . 5 Melee . | . . . . . . Uniques/NPCs Destroyed . | . . . . . . Combat | -11 -10 -10 -9 -9 -9 -------- Run | Yrd Mat Min Mat Min Exi Hostile Shots Fired 395 | . 80 36 193 30 56 Missed 110 | . 16 8 56 7 23 Damage Taken 3737 | . 703 381 1896 214 543 Core 637 | . 138 88 248 47 116 Absorbed by Shields . | . . . . . . Redirected to Shielding 50 | . . . . 20 30 Regen/Repaired (Parts) 66 | . . . 66 . . Core Remaining (%) 54 | 100 . 9 . . . Volleys Fired 243 | . 58 5 154 17 9 Largest 2 | . 2 1 2 2 2 Hottest 95 | . 95 35 79 50 63 Shots Fired 375 | . 104 5 215 36 15 Gun 286 | . 30 4 215 36 1 Cannon 75 | . 74 1 . . . Launcher 14 | . . . . . 14 Special . | . . . . . . Kinetic 299 | . 66 5 191 36 1 Thermal 52 | . 28 . 24 . . Explosive 14 | . . . . . 14 Electromagnetic 10 | . 10 . . . . Robot Hit Streak 13 | . 6 11 13 8 4 Robot Miss Streak 6 | . 4 . 6 6 1 Penetration Max . | . . . . . . Secondary Targets 6 | . . . 4 2 . Max Gunslinging Chain 1 | . . . 1 1 . Shots Hit Robots 252 | . 65 6 149 23 9 Core Hits 151 | . 29 5 72 15 30 Critical Kills 1 | . . . 1 . . Critical Parts Destroyed . | . . . . . . Critical Strikes 5 | . 3 . 2 . . Burn 1 | . . . 1 . . Blast 3 | . 3 . . . . Smash 1 | . . . 1 . . Melee Attacks 14 | . 1 1 12 . . Impact 11 | . 1 1 9 . . Slashing 3 | . . . 3 . . Piercing . | . . . . . . Sneak Attacks 3 | . 1 1 1 . . Combat Hostiles . | . . . . . . Follow-up Attacks . | . . . . . . Damage Inflicted 5435 | . 1105 115 2446 436 1333 Guns 3072 | . 220 49 2378 425 . Cannons 835 | . 819 16 . . . Explosions 1333 | . . . . . 1333 Melee 184 | . 66 50 68 . . Ramming 11 | . . . . 11 . Kinetic 3271 | . 610 65 2171 425 . Thermal 540 | . 333 . 207 . . Explosive 1333 | . . . . . 1333 Electromagnetic 96 | . 96 . . . . Impact 163 | . 66 50 47 . . Slashing 21 | . . . 21 . . Piercing . | . . . . . . Highest Corruption 6 | . . . 4 4 6 Average Corruption 4 | . . . 4 4 4 Corruption Purged . | . . . . . . Corruption Blocked . | . . . . . . Effects 39 | . . . 17 12 10 Message Errors 14 | . . . 4 5 5 Matter Fused 7 | . . . 3 1 3 Heat Flow Errors 4 | . . . 3 1 . Energy Discharges 4 | . . . 2 2 . Parts Fused 1 | . . . 1 . . Data Loss (minor) 1 | . . . 1 . . Data Loss (major) 3 | . . . 1 1 1 Misfires 4 | . . . 1 2 1 Alerts 1 | . . . 1 . . Overload Shots . | . . . . . . Overflow Damage 17 | . . 10 . . 7 Projectiles . | . . . . . . Explosions 7 | . . . . . 7 Melee 10 | . . 10 . . . Knockbacks 7 | . 6 1 . . . Impact 1 | . . 1 . . . Kinetic 6 | . 6 . . . . Secondary . | . . . . . . Self-Inflicted Damage 163 | . . . 110 . 53 Shots 5 | . . . 1 . 4 Rammed . | . . . . . . Targets Rammed 2 | . . . . 2 . Kicked 2 | . . . . 2 . Crushed . | . . . . . . Highest Temperature 284 | . 284 . 147 178 36 Average Temperature 69 | . 100 . 41 46 18 Received Heat Transfer 1224 | . 354 219 579 48 24 Siege Activations . | . . . . . . Robots Corrupted 1 | . . 1 . . . Combat Hostiles . | . . . . . . Parts Fried 3 | . . 3 . . . Impact Corruptions 1 | . . 1 . . . Robots Melted 1 | . 1 . . . . Combat Hostiles 1 | . 1 . . . . Parts Melted . | . . . . . . Heat Transferred 1221 | . 703 . 518 . . Parts Sabotaged . | . . . . . . Parts Stolen . | . . . . . . Parts Stripped . | . . . . . . Power Chain Reactions . | . . . . . . Alert | -11 -10 -10 -9 -9 -9 ------- Run | Yrd Mat Min Mat Min Exi Peak Influence 780 | . 168 55 780 519 . Initial 304 | . . . 21 304 . Average 162 | . 44 4 284 379 . Maximum Alert Level 3 | . . . 3 2 . Low Security (%) 73 | 100 100 100 58 . . Level 1 9 | . . . 5 73 . Level 2 12 | . . . 26 26 . Level 3 3 | . . . 9 . . Level 4 . | . . . . . . Level 5 . | . . . . . . High Security . | . . . . . . Max Security . | . . . . . . Squads Dispatched 8 | . 3 . 5 . . Investigation 4 | . 2 . 2 . . Extermination . | . . . . . . Reinforcement 3 | . 1 . 2 . . Assault 1 | . . . 1 . . Garrison . | . . . . . . Intercept . | . . . . . . Searches Triggered . | . . . . . . Construction Impeded . | . . . . . . Haulers Reinforced . | . . . . . . Active Scanning Responses . | . . . . . . Cargo Convoy Interrupts . | . . . . . . Stealth | -11 -10 -10 -9 -9 -9 --------- Run | Yrd Mat Min Mat Min Exi Distress Signals 3 | . 1 . 2 . . Communications Jammed . | . . . . . . Distress Signals . | . . . . . . Times Spotted 112 | . 30 2 56 9 15 Peak Tracking Total 14 | . 4 2 6 3 14 Tactical Retreats 7 | . 1 . 5 1 . Traps | -11 -10 -10 -9 -9 -9 ------- Run | Yrd Mat Min Mat Min Exi Traps Triggered 6 | . 6 . . . . Indirectly . | . . . . . . Trap Hack Attempts . | . . . . . . Triggered . | . . . . . . Disarmed . | . . . . . . Reprogrammed . | . . . . . . Reused . | . . . . . . Traps Extracted . | . . . . . . Installed . | . . . . . . Triggered . | . . . . . . Machines | -11 -10 -10 -9 -9 -9 ---------- Run | Yrd Mat Min Mat Min Exi Machines Disabled 5 | . . . 1 1 3 Max in Single Turn 2 | . . . 1 1 2 Machines Repaired . | . . . . . . Machines Dismantled . | . . . . . . Machines Sabotaged . | . . . . . . Overloaded Fab Kills . | . . . . . . Hacking | -11 -10 -10 -9 -9 -9 --------- Run | Yrd Mat Min Mat Min Exi Machines Accessed 17 | . 6 . 8 2 1 Terminals 11 | . 6 . 3 2 . Fabricators . | . . . . . . Repair Stations 1 | . . . 1 . . Recycling Units 2 | . . . 2 . . Scanalyzers 2 | . . . 2 . . Garrison Access . | . . . . . . Total Hacks 37 | . 17 . 14 5 1 Successful 19 | . 7 . 8 3 1 Failed 18 | . 10 . 6 2 . Catastrophic 4 | . 3 . 1 . . Database Lockouts . | . . . . . . Manual 25 | . 14 . 6 3 2 Terminals 26 | . 17 . 4 5 . Fabricators . | . . . . . . Repair Stations 3 | . . . 3 . . Recycling Units 2 | . . . 2 . . Scanalyzers 5 | . . . 5 . . Garrison Access . | . . . . . . Terminal Hacks 7 | . 4 . . 2 1 Record 3 | . 2 . . 1 . Unreport Threat 2 | . 2 . . . . Zone Layout 1 | . . . . 1 . Derelict Proto ID Bank 1 | . . . . . 1 Fabricator Hacks . | . . . . . . Repair Station Hacks 2 | . . . 2 . . Scan Component 1 | . . . 1 . . Repair 1 | . . . 1 . . Recycling Unit Hacks 2 | . . . 2 . . Recycle Component 1 | . . . 1 . . Report Inventory 1 | . . . 1 . . Scanalyzer 2 | . . . 2 . . Insert Component 1 | . . . 1 . . Analyze 1 | . . . 1 . . Garrison Access Hacks . | . . . . . . Unauthorized Hacks 6 | . 3 . 2 1 . Terminals 6 | . 3 . 2 1 . Assimilate 6 | . 3 . 2 1 . Fabricators . | . . . . . . Repair Stations . | . . . . . . Recycling Units . | . . . . . . Scanalyzers . | . . . . . . Garrison Access . | . . . . . . Data Cores Recovered . | . . . . . . Used . | . . . . . . Hacking Detections 11 | . 6 . 3 2 . Full Trace Events 6 | . 3 . 2 1 . Feedback Events . | . . . . . . Feedback Blocked . | . . . . . . Robot Schematics Acquired . | . . . . . . Robots Built . | . . . . . . Authchips . | . . . . . . Time . | . . . . . . Total Robot Build Rating . | . . . . . . Part Schematics Acquired 1 | . . . 1 . . Parts Built . | . . . . . . Authchips . | . . . . . . Time . | . . . . . . Total Part Build Rating . | . . . . . . Parts Repaired 1 | . . . 1 . . Time 26 | . . . 26 . . Parts Recycled 1 | . . . 1 . . Recycled Matter . | . . . . . . Retrieved Matter . | . . . . . . Retrieved Components . | . . . . . . Parts Scanalyzed 1 | . . . 1 . . Part Schematics Acquired 1 | . . . 1 . . Parts Damaged . | . . . . . . Bothacking | -11 -10 -10 -9 -9 -9 ------------ Run | Yrd Mat Min Mat Min Exi Used RIF Installer . | . . . . . . Robots Hacked . | . . . . . . Non-combat . | . . . . . . Combat . | . . . . . . Robot Hacks Applied . | . . . . . . Relay Couplers Released . | . . . . . . Fabnet Peak Effective % . | . . . . . . Robots Rewired . | . . . . . . Allies Hacked . | . . . . . . Hacks Repelled . | . . . . . . Allies | -11 -10 -10 -9 -9 -9 -------- Run | Yrd Mat Min Mat Min Exi Total Allies . | . . . . . . Largest Group . | . . . . . . Highest-Rated Group . | . . . . . . Highest-Rated Ally . | . . . . . . Total Orders . | . . . . . . Ally Attacks . | . . . . . . Total Damage . | . . . . . . Kills . | . . . . . . Allies Corrupted . | . . . . . . Allies Melted . | . . . . . . Turrets Deployed 2 | . . . . . 2 Intel | -11 -10 -10 -9 -9 -9 ------- Run | Yrd Mat Min Mat Min Exi Robot Analysis Total . | . . . . . . Derelict Logs Recovered 4 | . . 2 . 2 . Drone Launches . | . . . . . . Drone Recoveries . | . . . . . . Exploration | -11 -10 -10 -9 -9 -9 ------------- Run | Yrd Mat Min Mat Min Exi Turns Passed 6862 | 68 2149 1094 2394 667 490 Spaces Moved 2954 | 42 600 256 1177 500 379 Core 14 | 11 1 2 . . . Treads 200 | 24 176 . . . . Legs 2740 | 7 423 254 1177 500 379 Wheels . | . . . . . . Hover . | . . . . . . Flight . | . . . . . . Fastest Speed 50 | 50 120 400 120 120 120 Average Speed 194 | 124 314 409 144 120 120 Slowest Speed 1450 | 160 1450 1450 260 120 120 Overloaded Moves . | . . . . . . Propulsion Burnouts . | . . . . . . Robots Hopped 1 | . . . . . 1 Cave-ins Triggered . | . . . . . . Exploration Rate (%) 68 | 5 94 64 78 92 78 Regions Visited 5 Branch Regions 3 Pre-discovered Areas 2 | . . 1 . 1 . Known Exits Taken . | . . . . . . Unknown Exits Taken 5 | 1 1 1 1 1 . Scrap Searched 3 | . . 1 . 2 . Spaces Dug 7 | . . . 7 . . Terrain Destroyed 120 | . . . 46 . 74 Melee 7 | . . . 7 . . Projectile . | . . . . . . AOE 113 | . . . 39 . 74 Terrain Rammed . | . . . . . . Walls Destroyed . | . . . . . . Machines Disabled . | . . . . . . Actions | -11 -10 -10 -9 -9 -9 --------- Run | Yrd Mat Min Mat Min Exi Total 3716 | 57 766 298 1656 538 401 Wait 253 | . 31 25 192 4 1 Move 2947 | 41 599 255 1176 499 377 Hop 1 | . . . . . 1 Pick Up 76 | 8 35 5 24 3 1 Fast Attach 24 | 2 14 1 6 . 1 Attach 30 | 5 7 5 10 1 2 Detach 1 | 1 . . . . . Swap 39 | . 4 . 27 5 3 Drop 85 | . 17 1 55 7 5 Fire 243 | . 58 5 154 17 9 Melee 14 | . 1 1 12 . . Ram . | . . . . . . Kick 2 | . . . . 2 . Crush . | . . . . . . Escape Stasis . | . . . . . . Rewire 1 | . . . . . 1 Trap . | . . . . . . Miscellaneous . | . . . . . . Route ------- -11/Scrapyard -10/Materials (discovered 5 exits: *Mat x3 / [*Min x2]) -10/Mines -9/Materials (discovered 4 exits: [*Mat x3] / *Min) -9/Mines (discovered 3 exits: [*Mat x2] / *Exi) -9/Exiles (discovered 1 exit: [*Min]) History --------- Turn | Location | Event 11 | -11/Scrapyard | Discovered new exit (range 16) 69 | -11/Scrapyard | Entered Materials 263 | -10/Materials | Discovered new exit (range 9) 304 | -10/Materials | Build established: Mutant 531 | -10/Materials | Discovered new exit (range 7) 783 | -10/Materials | Discovered new exit (range 14) 954 | -10/Materials | Core integrity fell below 50% 1205 | -10/Materials | Discovered new exit (range 16) 1646 | -10/Materials | Discovered new exit (range 15) 1975 | -10/Materials | Build established: Scavenger-Mutant 2218 | -10/Materials | Entered Mines 2225 | -10/Mines | Received a Rocket Launcher from a helpful Derelict 2371 | -10/Mines | Build established: Mutant 2680 | -10/Mines | Learned location of Zion (-6) 2700 | -10/Mines | Learned Materials trap positions 2888 | -10/Mines | Found a damaged Exp. Sensor Array with a note attached 2897 | -10/Mines | Found Prototype Device 2897 | -10/Mines | Identified Exp. Sensor Array 3169 | -10/Mines | Discovered new exit (range 13) 3218 | -10/Mines | Core integrity fell below 20% 3228 | -10/Mines | Lost 4 parts (1p2n1w) 3312 | -10/Mines | Entered Materials 3312 | -9/Materials | Evolved 2 slots: Propulsion x2 3313 | -9/Materials | Loaded intel: 17 trap records 3826 | -9/Materials | Build established: Scavenger-Mutant 4149 | -9/Materials | Discovered new exit (range 5) 4549 | -9/Materials | Discovered new exit (range 6) 4610 | -9/Materials | Discovered new exit (range 10) 5046 | -9/Materials | Core integrity fell below 50% 5312 | -9/Materials | First assault squad dispatched 5316 | -9/Materials | Repaired Aluminum Leg 5478 | -9/Materials | Discovered new exit (range 9) 5706 | -9/Materials | Entered Mines 5760 | -9/Mines | Discovered new exit (range 9) 6051 | -9/Mines | Found DCF Scrap (14 items) 6110 | -9/Mines | Learned Materials stockpile data 6265 | -9/Mines | Discovered new exit (range 8) 6266 | -9/Mines | Learned location of Storage (-8) 6368 | -9/Mines | Deemed a non-threat by the Exiles lab entrance 6368 | -9/Mines | Discovered new exit (range 5) 6373 | -9/Mines | Entered Exiles 6413 | -9/Exiles | Discovered new exit (range 14) 6443 | -9/Exiles | Met 8R-AWN 6469 | -9/Exiles | Met EX-HEX 6510 | -9/Exiles | Met EX-BIN 6543 | -9/Exiles | Aligned with FarCom system 6545 | -9/Exiles | Given EX-Vault access code 6593 | -9/Exiles | Opened EX-Vault 6597 | -9/Exiles | DAS Turret deployed 6600 | -9/Exiles | DAS Turret deployed 6606 | -9/Exiles | Found Prototype Energy Cannon 6606 | -9/Exiles | Identified Gui. Plasma Cannon 6616 | -9/Exiles | Found Prototype Ballistic Gun 6617 | -9/Exiles | Identified XL Autogun Array 6640 | -9/Exiles | Warned to stay clear of 0b10 Research branches 6649 | -9/Exiles | Exiles lab attacked by MAIN.C 6837 | -9/Exiles | Core integrity fell below 20% 6863 | -9/Exiles | Destroyed by H-55 Commando with Gauss Rifle Last Messages --------------- 06842_ H-55 Commando destroyed. 06842_ L-31 Rogue destroyed. 06842_ G-34 Mercenary destroyed. [Achievement: Quick And Dirty] 06844_ Slug penetrates Wall. 06845_ P-60 Hacker destroyed. 06845_ G-34 Mercenary destroyed. 06848_ Destroyed Shock Rifle. 06850_ Penetrated by Slug. 06850_ Machine disabled. 06852_ The unstable cave ceiling collapses. 06852_ P-60 Hacker destroyed. 06854_ The unstable cave ceiling collapses. 06858_ System corrupted: Matter fused (-8). 06860_ Aluminum Leg destroyed. 06861_ The unstable cave ceiling collapses. 06861_ H-55 Commando destroyed. 06862_ The unstable cave ceiling collapses. 06863_ Slug penetrates Earth. 06863_ H-55 Commando destroyed. Map ----- +----------------------------------------------------+ | ??????????#"" ????" | | ??????????##"" ?? | | ???????????#"""" ?? | | ???????????## ?? | | ????????????#" " ?? "" | | ????????????#"""" ""????##""" " " " | | ????????????#"" ""#???????####""" "" | | ????????????#" """"#???????????###"""" | | ????????????#""" """#?????????????####? | | ????????????## ""#??????????????????? | | ?????????????#"" ""##??????????????????? | | ?????????????##""" ##???????????????????? | | ??????????????##"""" = ##????????????????????? | | ???????????????### *%h[ ##????????????????????? | | ?????????????????#### % #????????????????????? | | ????????????????????# ##???????????????????? | | ???????????????????## = #???????????????????? | | ???????????????????# = #???????????????????? | | ???????????????????# # = #???????????????????? | | ?????????????###???# ##??????????????????? | | ???"""""???#"""""??# ???????????????????? | | ?"""""""????"""""""# #???????????????????? | | """""" "#??#" """"# #???????????????????? | | #""" """????"" """# # #???????????????????? | | #"" ""????"" ""# % #???????????????????? | | ###"""########"""### @# ######???????????????? | | """ """""""" """" """"#???????????????? | | "" """"""" "#"" "???????????? | | " "???????????? | | " "????????????? | | " "????????????? | | "" #"" "???????????? | | " " """"" " """ """""#???????????????? | | ###"""###""###"""########"""######???????????????? | | ?"" ""#""#"" ""?????? ""???????????????????? | | #""" ""#""#""" ""#????? """???????????????????? | | #" """"""""#" " "#?????"""""#??????????????????? | | ?"""""""????"""""""#????? """????????????????????? | | ?"""""""????"""""""#?????"""?????????????????????? | | ??????????????####???????????????????????????????? | | ?????????????????????????????????????????????????? | | ?????????????????????????????????????????????????? | | ?????????????????????????????????????????????????? | | ?????????????????????????????????????????????????? | | | | | | | | | | | | | +----------------------------------------------------+ Best States ------------- Heat Dissipation 42 Energy Generation 14 Energy Capacity 265 Matter Stores 300 Matter Capacity 300 Sight Range 16 Robot Scan Range 20 Terrain Scan Density 10 Armor Coverage 225 Propulsion Shielding 33 Evasion (%) 55 Recoil Reduction 2 Item Schematics ----------------- Aluminum Leg | -9/Materials | Scanalyzed Robot Schematics ------------------ None Fabricated ------------ Nothing Alien Tech Used ----------------- None Achievements -------------- Quick And Dirty Challenges ------------ None Game ------ Seed ForceModifiedBotcube Manual? 0 Play Time 00:52:35 Cumulative 24.0 hours Start 2024.09.08 @ 15:21:57 End 2024.09.08 @ 16:12:59 Sessions 1 Manual Loads 0 Difficulty Rogue Special Mode None Game No. 35 Rogue 35 Adventurer 0 Explorer 0 Win Type - Total 0 Types 0/0/0/0/0/0/0/0/0 Lore% 7 Gallery% 29 Achievement% 23 Wizard Run 0 Options --------- Layout 0 ASCII 0 Keyboard 0 Movement Mouse Keybinds 0 Fullscreen 1 Font 18/SmallcapsGlow Map View 76x50 Zoom Use 0% Tactical HUD 1 Map Filters NONE Filters NONE Steam 1 RUN: cae8943e-a128-434a-b4a7-64a21a6e3d3a